fUSD/lending_fUSD_20250823
["ID","MTS","AMOUNT","RATE_DAILY","PERIOD"]
[381018432,1755948656666,-400.0,0.00013972,2]
[381018433,1755948656676,-704.32,0.00013972,2]
[381018434,1755948656686,-547.03,0.00013972,2]
[381018435,1755948656695,-400.0,0.00013972,2]
[381018436,1755948656704,-481.6,0.00013972,2]
[381018437,1755948656715,-409.66,0.00013972,2]
[381018438,1755948656724,-576.9,0.00013972,2]
[381018439,1755948656734,-964.23,0.00013972,2]
[381018440,1755948656744,-400.0,0.00013972,2]
[381018441,1755948656753,-529.81,0.00013972,2]
[381018442,1755948656763,-400.0,0.00013972,2]
[381018443,1755948656773,-400.0,0.00013972,2]
[381018444,1755948656782,-632.83,0.00013972,2]
[381018445,1755948656792,-510.55,0.00013972,2]
[381018446,1755948656801,-458.82,0.00013972,2]
[381018447,1755948656810,-400.0,0.00013972,2]
[381018448,1755948656820,-400.0,0.00013972,2]
[381018449,1755948656830,-400.0,0.00013972,2]
[381018450,1755948656839,-428.13,0.00013972,2]
[381018451,1755948656848,-519.13,0.00013972,2]
[381018452,1755948656858,-400.0,0.00013972,2]
[381018453,1755948656867,-400.0,0.00013972,2]
[381018454,1755948656877,-400.0,0.00013972,2]
[381018455,1755948656886,-403.71918202,0.00013972,2]
[381018456,1755948656896,-462.62,0.00013972,2]
[381018457,1755948656905,-400.0,0.00013972,2]
[381018458,1755948656915,-400.0,0.00013972,2]
[381018459,1755948656924,-400.0,0.00013972,2]
[381018460,1755948656934,-404.06,0.00013972,2]
[381018461,1755948656943,-400.0,0.00013972,2]
[381018462,1755948656952,-575.51,0.00013972,2]
[381018463,1755948656963,-400.0,0.00013972,2]
[381018464,1755948656973,-400.0,0.00013972,2]
[381018465,1755948656982,-401.11132935,0.00013972,2]
[381018466,1755948656992,-400.0,0.00013972,2]
[381018467,1755948657004,-400.0,0.00013972,2]
[381018468,1755948657014,-400.0,0.00013972,2]
[381018469,1755948657024,-400.0,0.00013972,2]
[381018470,1755948657034,-458.64,0.00013972,2]
[381018471,1755948657044,-400.0,0.00013972,2]
[381018472,1755948657054,-466.97,0.00013972,2]
[381018473,1755948657063,-400.0,0.00013972,2]
[381018474,1755948657073,-400.0,0.00013972,2]
[381018475,1755948657084,-400.0,0.00013972,2]
[381018476,1755948657094,-400.0,0.00013972,2]
[381018477,1755948657103,-402.92997794,0.00013972,2]
[381018478,1755948657113,-400.0,0.00013972,2]
[381018479,1755948657123,-400.95,0.00013972,2]
[381018480,1755948657132,-629.47,0.00013972,2]
[381018481,1755948657142,-783.24,0.00013972,2]
[381018482,1755948657151,-400.0,0.00013972,2]
[381018483,1755948657160,-400.0,0.00013972,2]
[381018484,1755948657169,-580.94,0.00013972,2]
[381018485,1755948657252,-673.78,0.00013972,2]
[381018486,1755948657262,-538.24,0.00013972,2]
[381018487,1755948657272,-400.0,0.00013972,2]
[381018488,1755948657282,-400.0,0.00013972,2]
[381018489,1755948657291,-453.24,0.00013972,2]
[381018490,1755948657301,-584.32,0.00013972,2]
[381018491,1755948657310,-509.76,0.00013972,2]
[381018492,1755948657320,-400.0,0.00013972,2]
[381018493,1755948657330,-468.07,0.00013972,2]
[381018494,1755948657340,-456.02,0.00013972,2]
[381018495,1755948657349,-400.0,0.00013972,2]
[381018496,1755948657358,-400.0,0.00013972,2]
[381018497,1755948657368,-402.27801565,0.00013972,2]
[381018498,1755948657377,-408.09172711,0.00013972,2]
[381018499,1755948657387,-532.21,0.00013972,2]
[381018500,1755948657396,-400.0,0.00013972,2]
[381018501,1755948657405,-400.0,0.00013972,2]
[381018502,1755948657415,-865.07,0.00013972,2]
[381018503,1755948657424,-400.0,0.00013972,2]
[381018504,1755948657434,-517.01,0.00013972,2]
[381018505,1755948657443,-408.97,0.00013972,2]
[381018506,1755948657452,-400.0,0.00013972,2]
[381018507,1755948657462,-400.0,0.00013972,2]
[381018508,1755948657471,-400.0,0.00013972,2]
[381018509,1755948657481,-403.03341983,0.00013972,2]
[381018510,1755948657491,-400.0,0.00013972,2]
[381018511,1755948657501,-609.39,0.00013972,2]
[381018512,1755948657510,-400.0,0.00013972,2]
[381018513,1755948657520,-590.54,0.00013972,2]
[381018514,1755948657530,-402.00173781,0.00013972,2]
[381018515,1755948657539,-608.53,0.00013972,2]
[381018516,1755948657549,-530.7,0.00013972,2]
[381018517,1755948657558,-400.0,0.00013972,2]
[381018518,1755948657568,-465.23,0.00013972,2]
[381018519,1755948657579,-400.0,0.00013972,2]
[381018520,1755948657588,-400.0,0.00013972,2]
[381018521,1755948657598,-336.28287231,0.00013972,2]
[381018522,1755948657608,-400.0,0.00013972,2]
[381018523,1755948657619,-282.28945904,0.00013972,2]
[381018524,1755948657630,-537.11,0.00013972,2]
[381018525,1755948657642,-400.0,0.00013972,2]
[381018526,1755948657652,-400.0,0.00013972,2]
[381018527,1755948657662,-402.92279521,0.00013972,2]
[381018528,1755948657673,-894.47,0.00013972,2]
[381018529,1755948657682,-451.16,0.00013972,2]
[381018530,1755948657692,-400.0,0.00013972,2]
[381018531,1755948657701,-400.0,0.00013972,2]
[381018532,1755948657711,-400.0,0.00013972,2]
[381018533,1755948657721,-248.15832436,0.00013972,2]
[381018534,1755948657730,-400.0,0.00013972,2]
[381018535,1755948657740,-400.0,0.00013972,2]
[381018536,1755948657749,-597.75,0.00013972,2]
[381018537,1755948657759,-554.13,0.00013972,2]
[381018538,1755948657768,-881.87,0.00013972,2]
[381018539,1755948657778,-400.0,0.00013972,2]
[381018540,1755948657787,-400.0,0.00013972,2]
[381018541,1755948657797,-400.0,0.00013972,2]
[381018542,1755948657806,-400.0,0.00013972,2]
[381018543,1755948657815,-400.0,0.00013972,2]
[381018544,1755948657825,-400.0,0.00013972,2]
[381018545,1755948657834,-477.34,0.00013972,2]
[381018546,1755948657847,-489.36,0.00013972,2]
[381018547,1755948657859,-400.0,0.00013972,2]
[381018548,1755948657870,-400.0,0.00013972,2]
[381018549,1755948657882,-527.68,0.00013972,2]
[381018550,1755948657895,-744.52,0.00013972,2]
[381018551,1755948657912,-400.0,0.00013972,2]
[381018552,1755948657922,-885.96,0.00013972,2]
[381018553,1755948657931,-842.51,0.00013972,2]
[381018554,1755948657942,-400.0,0.00013972,2]
[381018555,1755948657951,-400.0,0.00013972,2]
[381018556,1755948657961,-400.0,0.00013972,2]
[381018557,1755948657971,-765.59,0.00013972,2]
[381018558,1755948657980,-601.26,0.00013972,2]
[381018559,1755948657989,-506.63,0.00013972,2]
[381018560,1755948658000,-735.47,0.00013972,2]
[381018561,1755948658011,-716.18,0.00013972,2]
[381018562,1755948658022,-400.0,0.00013972,2]
[381018563,1755948658032,-440.52,0.00013972,2]
[381018564,1755948658043,-400.0,0.00013972,2]
[381018565,1755948658054,-400.0,0.00013972,2]
[381018566,1755948658063,-856.84,0.00013972,2]
[381018567,1755948658075,-447.15,0.00013972,2]
[381018568,1755948658088,-777.44,0.00013972,2]
[381018569,1755948658099,-400.0,0.00013972,2]
[381018570,1755948658111,-545.54,0.00013972,2]
[381018571,1755948658122,-424.76,0.00013972,2]
[381018572,1755948658134,-630.73,0.00013972,2]
[381018573,1755948658145,-545.06,0.00013972,2]
[381018574,1755948658155,-400.0,0.00013972,2]
[381018575,1755948658166,-151.0,0.00013972,2]
[381018576,1755948658176,-151.0,0.00013972,2]
[381018577,1755948658186,-465.31,0.00013972,2]
[381018578,1755948658196,-655.34,0.00013972,2]
[381018579,1755948658205,-829.31,0.00013972,2]
[381018580,1755948658214,-415.96,0.00013972,2]
[381018581,1755948658224,-727.57,0.00013972,2]
[381018582,1755948658233,-786.65,0.00013972,2]
[381018583,1755948658243,-528.08,0.00013972,2]
[381018584,1755948658252,-400.0,0.00013972,2]
[381018585,1755948658261,-400.0,0.00013972,2]
[381018586,1755948658271,-400.0,0.00013972,2]
[381018587,1755948658280,-900.25,0.00013972,2]
[381018588,1755948658289,-400.0,0.00013972,2]
[381018589,1755948658299,-400.0,0.00013972,2]
[381018590,1755948658308,-737.45,0.00013972,2]
[381018591,1755948658317,-400.0,0.00013972,2]
[381018592,1755948658327,-400.0,0.00013972,2]
[381018593,1755948658337,-598.59,0.00013972,2]
[381018594,1755948658346,-400.0,0.00013972,2]
[381018595,1755948658355,-400.0,0.00013972,2]
[381018596,1755948658365,-433.98,0.00013972,2]
[381018597,1755948658374,-830.66,0.00013972,2]
[381018598,1755948658384,-973.51,0.00013972,2]
[381018599,1755948658394,-1013.02,0.00013972,2]
[381018600,1755948658403,-400.0,0.00013972,2]
[381018601,1755948658413,-469.45,0.00013972,2]
[381018602,1755948658422,-400.0,0.00013972,2]
[381018603,1755948658431,-400.0,0.00013972,2]
[381018604,1755948658441,-635.62,0.00013972,2]
[381018605,1755948658450,-160.429263,0.00013972,2]
[381018606,1755948658459,-160.429263,0.00013972,2]
[381018607,1755948658470,-160.429263,0.00013972,2]
[381018608,1755948658479,-160.429263,0.00013972,2]
[381018609,1755948658489,-400.0,0.00013972,2]
[381018610,1755948658499,-400.0,0.00013972,2]
[381018611,1755948658508,-160.429263,0.00013972,2]
[381018612,1755948658518,-160.429263,0.00013972,2]
[381018613,1755948658528,-151.0,0.00013972,2]
[381018614,1755948658538,-647.79,0.00013972,2]
[381018615,1755948658547,-151.0,0.00013972,2]
[381018616,1755948658557,-400.0,0.00013972,2]
[381018617,1755948658567,-400.0,0.00013972,2]
[381018618,1755948658576,-160.429263,0.00013972,2]
[381018619,1755948658585,-160.429263,0.00013972,2]
[381018620,1755948658595,-948.76,0.00013972,2]
[381018621,1755948658604,-571.6,0.00013972,2]
[381018622,1755948658613,-569.16,0.00013972,2]
[381018623,1755948658623,-604.26,0.00013972,2]
[381018624,1755948658632,-859.96,0.00013972,2]
[381018625,1755948658642,-400.0,0.00013972,2]
[381018626,1755948658652,-406.27,0.00013972,2]
[381018627,1755948658661,-400.0,0.00013972,2]
[381018628,1755948658671,-400.0,0.00013972,2]
[381018629,1755948658680,-882.09,0.00013972,2]
[381018630,1755948658689,-585.77,0.00013972,2]
[381018631,1755948658699,-400.0,0.00013972,2]
[381018632,1755948658709,-400.0,0.00013972,2]
[381018633,1755948658719,-400.0,0.00013972,2]
[381018634,1755948658728,-400.0,0.00013972,2]
[381018635,1755948658738,-502.66,0.00013972,2]
[381018636,1755948658747,-535.09,0.00013972,2]
[381018637,1755948658757,-400.0,0.00013972,2]
[381018638,1755948658767,-400.0,0.00013972,2]
[381018639,1755948658776,-400.0,0.00013972,2]
[381018640,1755948658785,-400.0,0.00013972,2]
[381018641,1755948658794,-400.0,0.00013972,2]
[381018642,1755948658804,-494.05,0.00013972,2]
[381018643,1755948658814,-644.24,0.00013972,2]
[381018644,1755948658824,-400.0,0.00013972,2]
[381018645,1755948658834,-763.31,0.00013972,2]
[381018646,1755948658843,-421.46,0.00013972,2]
[381018647,1755948658853,-595.28,0.00013972,2]
[381018648,1755948658862,-651.58,0.00013972,2]
[381018649,1755948658872,-638.4,0.00013972,2]
[381018650,1755948658882,-701.06,0.00013972,2]
[381018651,1755948658891,-400.0,0.00013972,2]
[381018652,1755948658901,-563.15,0.00013972,2]
[381018653,1755948658911,-609.72,0.00013972,2]
[381018654,1755948658921,-400.0,0.00013972,2]
[381018655,1755948658931,-400.0,0.00013972,2]
[381018656,1755948658940,-542.51,0.00013972,2]
[381018657,1755948658950,-608.21,0.00013972,2]
[381018658,1755948658959,-598.38,0.00013972,2]
[381018659,1755948658969,-400.0,0.00013972,2]
[381018660,1755948658979,-657.63,0.00013972,2]
[381018661,1755948658988,-562.02,0.00013972,2]
[381018662,1755948658999,-543.43,0.00013972,2]
[381018663,1755948659011,-400.0,0.00013972,2]
[381018664,1755948659022,-400.0,0.00013972,2]
[381018665,1755948659032,-400.0,0.00013972,2]
[381018666,1755948659042,-400.0,0.00013972,2]
[381018667,1755948659052,-683.84,0.00013972,2]
[381018668,1755948659062,-637.65,0.00013972,2]
[381018669,1755948659071,-509.04,0.00013972,2]
[381018670,1755948659082,-615.67,0.00013972,2]
[381018671,1755948659092,-525.66,0.00013972,2]
[381018672,1755948659102,-400.0,0.00013972,2]
[381018673,1755948659111,-400.0,0.00013972,2]
[381018674,1755948659121,-400.0,0.00013972,2]
[381018675,1755948659130,-670.92,0.00013972,2]
[381018676,1755948659139,-400.0,0.00013972,2]
[381018677,1755948659149,-400.0,0.00013972,2]
[381018678,1755948659159,-422.53,0.00013972,2]
[381018679,1755948659168,-792.33,0.00013972,2]
[381018680,1755948659178,-151.0,0.00013972,2]
[381018681,1755948659187,-400.0,0.00013972,2]
[381018682,1755948659196,-151.0,0.00013972,2]
[381018683,1755948659206,-402.96536814,0.00013972,2]
[381018684,1755948659215,-151.0,0.00013972,2]
[381018685,1755948659224,-151.0,0.00013972,2]
[381018686,1755948659235,-151.0,0.00013972,2]
[381018687,1755948659244,-400.0,0.00013972,2]
[381018688,1755948659254,-151.0,0.00013972,2]
[381018689,1755948659264,-151.0,0.00013972,2]
[381018690,1755948659274,-151.0,0.00013972,2]
[381018691,1755948659285,-668.48,0.00013972,2]
[381018692,1755948659295,-400.0,0.00013972,2]
[381018693,1755948659306,-269.033934,0.00013972,2]
[381018694,1755948659317,-594.91,0.00013972,2]
[381018695,1755948659329,-151.0,0.00013972,2]
[381018696,1755948659339,-436.91,0.00013972,2]
[381018697,1755948659349,-151.0,0.00013972,2]
[381018698,1755948659358,-400.0,0.00013972,2]
[381018699,1755948659367,-151.0,0.00013972,2]
[381018700,1755948659377,-400.0,0.00013972,2]
[381018701,1755948659386,-584.68,0.00013972,2]
[381018702,1755948659396,-151.0,0.00013972,2]
[381018703,1755948659406,-400.0,0.00013972,2]
[381018704,1755948659416,-400.0,0.00013972,2]
[381018705,1755948659426,-151.0,0.00013972,2]
[381018706,1755948659435,-151.0,0.00013972,2]
[381018707,1755948659445,-177.624919,0.00013972,2]
[381018708,1755948659454,-265.669139,0.00013972,2]
[381018709,1755948659464,-400.0,0.00013972,2]
[381018710,1755948659473,-400.0,0.00013972,2]
[381018711,1755948659483,-807.11,0.00013972,2]
[381018712,1755948659492,-696.04,0.00013972,2]
[381018713,1755948659501,-400.0,0.00013972,2]
[381018714,1755948659511,-400.0,0.00013972,2]
[381018715,1755948659521,-454.27,0.00013972,2]
[381018716,1755948659531,-569.44,0.00013972,2]
[381018717,1755948659541,-400.0,0.00013972,2]
[381018718,1755948659551,-400.0,0.00013972,2]
[381018719,1755948659560,-400.0,0.00013972,2]
[381018720,1755948659569,-400.0,0.00013972,2]
[381018721,1755948659579,-400.0,0.00013972,2]
[381018722,1755948659590,-400.0,0.00013972,2]
[381018723,1755948659607,-822.03,0.00013972,2]
[381018724,1755948659617,-400.0,0.00013972,2]
[381018725,1755948659627,-723.7,0.00013972,2]
[381018726,1755948659636,-401.77335521,0.00013972,2]
[381018727,1755948659645,-707.25,0.00013972,2]
[381018728,1755948659655,-400.0,0.00013972,2]
[381018729,1755948659664,-400.0,0.00013972,2]
[381018730,1755948659674,-877.13,0.00013972,2]
[381018731,1755948659683,-401.63033676,0.00013972,2]
[381018732,1755948659694,-400.0,0.00013972,2]
[381018733,1755948659709,-402.37855004,0.00013972,2]
[381018734,1755948659720,-557.22,0.00013972,2]
[381018735,1755948659732,-400.0,0.00013972,2]
[381018736,1755948659751,-400.0,0.00013972,2]
[381018737,1755948659762,-400.0,0.00013972,2]
[381018738,1755948659772,-400.0,0.00013972,2]
[381018739,1755948659782,-400.0,0.00013972,2]
[381018740,1755948659792,-448.82,0.00013972,2]
[381018741,1755948659915,-400.0,0.00013972,2]
[381018742,1755948659929,-151.0,0.00013972,2]
[381018743,1755948659939,-207.449228,0.00013972,2]
[381018744,1755948659949,-914.45,0.00013972,2]
[381018745,1755948659959,-400.0,0.00013972,2]
[381018746,1755948659969,-473.64,0.00013972,2]
[381018747,1755948659978,-400.0,0.00013972,2]
[381018748,1755948659988,-963.71,0.00013972,2]
[381018749,1755948659998,-400.0,0.00013972,2]
[381018750,1755948660011,-399.76003314,0.00013972,2]
[381018751,1755948660021,-400.0,0.00013972,2]
[381018752,1755948660030,-544.05,0.00013972,2]
[381018753,1755948660042,-506.43,0.00013972,2]
[381018754,1755948660052,-513.25,0.00013972,2]
[381018755,1755948660062,-400.0,0.00013972,2]
[381018756,1755948660072,-400.0,0.00013972,2]
[381018757,1755948660086,-400.0,0.00013972,2]
[381018758,1755948660097,-400.0,0.00013972,2]
[381018759,1755948660107,-561.19,0.00013972,2]
[381018760,1755948660117,-781.6,0.00013972,2]
[381018761,1755948660128,-400.0,0.00013972,2]
[381018762,1755948660138,-789.92,0.00013972,2]
[381018763,1755948660148,-151.0,0.00013972,2]
[381018764,1755948660158,-165.308302,0.00013972,2]
[381018765,1755948660169,-415.75541122,0.00013972,2]
[381018766,1755948660178,-342.48210321,0.00013972,2]
[381018767,1755948660188,-400.0,0.00013972,2]
[381018768,1755948660198,-660.92,0.00013972,2]
[381018769,1755948660209,-400.0,0.00013972,2]
[381018770,1755948660219,-400.0,0.00013972,2]
[381018771,1755948660228,-400.0,0.00013972,2]
[381018772,1755948660238,-400.0,0.00013972,2]
[381018773,1755948660247,-400.0,0.00013972,2]
[381018774,1755948660258,-400.0,0.00013972,2]
[381018775,1755948660268,-400.0,0.00013972,2]
[381018776,1755948660278,-400.0,0.00013972,2]
[381018777,1755948660290,-400.0,0.00013972,2]
[381018778,1755948660301,-635.01,0.00013972,2]
[381018779,1755948660311,-400.0,0.00013972,2]
[381018780,1755948660320,-400.0,0.00013972,2]
[381018781,1755948660330,-400.0,0.00013972,2]
[381018782,1755948660339,-400.0,0.00013972,2]
[381018783,1755948660349,-623.09,0.00013972,2]
[381018784,1755948660358,-400.0,0.00013972,2]
[381018785,1755948660368,-400.0,0.00013972,2]
[381018786,1755948660377,-400.0,0.00013972,2]
[381018787,1755948660387,-400.0,0.00013972,2]
[381018788,1755948660396,-530.24,0.00013972,2]
[381018789,1755948660405,-443.18,0.00013972,2]
[381018790,1755948660415,-400.0,0.00013972,2]
[381018791,1755948660424,-563.01,0.00013972,2]
[381018792,1755948660433,-400.0,0.00013972,2]
[381018793,1755948660442,-446.52,0.00013972,2]
[381018794,1755948660452,-400.0,0.00013972,2]
[381018795,1755948660461,-550.29,0.00013972,2]
[381018796,1755948660470,-734.14,0.00013972,2]
[381018797,1755948660480,-747.95,0.00013972,2]
[381018798,1755948660489,-400.0,0.00013972,2]
[381018799,1755948660499,-400.0,0.00013972,2]
[381018800,1755948660510,-400.0,0.00013972,2]
[381018801,1755948660519,-503.21,0.00013972,2]
[381018802,1755948660529,-400.0,0.00013972,2]
[381018803,1755948660541,-852.76,0.00013972,2]
[381018804,1755948660552,-555.14,0.00013972,2]
[381018805,1755948660562,-400.0,0.00013972,2]
[381018806,1755948660572,-736.8,0.00013972,2]
[381018807,1755948660583,-468.28,0.00013972,2]
[381018808,1755948660592,-415.48,0.00013972,2]
[381018809,1755948660602,-400.0,0.00013972,2]
[381018810,1755948660612,-464.2,0.00013972,2]
[381018811,1755948660622,-1073.16,0.00013972,2]
[381018812,1755948660631,-910.95,0.00013972,2]
[381018813,1755948660644,-400.0,0.00013972,2]
[381018814,1755948660654,-1147.22,0.00013972,2]
[381018815,1755948660663,-521.18,0.00013972,2]
[381018816,1755948660674,-524.08969009,0.00013972,2]
[381018817,1755948660684,-400.0,0.00013972,2]
[381018818,1755948660695,-783.18,0.00013972,2]
[381018819,1755948660704,-400.0,0.00013972,2]
[381018820,1755948660715,-400.0,0.00013972,2]
[381018821,1755948660724,-151.0,0.00013972,2]
[381018822,1755948660734,-400.0,0.00013972,2]
[381018823,1755948660744,-400.0,0.00013972,2]
[381018824,1755948660753,-968.93,0.00013972,2]
[381018825,1755948660763,-599.76,0.00013972,2]
[381018826,1755948660772,-400.0,0.00013972,2]
[381018827,1755948660782,-400.0,0.00013972,2]
[381018828,1755948660791,-151.0,0.00013972,2]
[381018829,1755948660800,-448.13,0.00013972,2]
[381018830,1755948660810,-943.64,0.00013972,2]
[381018831,1755948660819,-450.92,0.00013972,2]
[381018832,1755948660829,-945.49,0.00013972,2]
[381018833,1755948660844,-835.65,0.00013972,2]
[381018834,1755948660855,-400.0,0.00013972,2]
[381018835,1755948660865,-926.66,0.00013972,2]
[381018836,1755948660875,-1057.46,0.00013972,2]
[381018837,1755948660885,-1506.28,0.00013972,2]
[381018838,1755948660894,-400.0,0.00013972,2]
[381018839,1755948660904,-400.0,0.00013972,2]
[381018840,1755948660913,-400.0,0.00013972,2]
[381018841,1755948660923,-799.65,0.00013972,2]
[381018842,1755948660932,-151.0,0.00013972,2]
[381018843,1755948660942,-400.0,0.00013972,2]
[381018844,1755948660956,-400.0,0.00013972,2]
[381018845,1755948660967,-400.0,0.00013972,2]
[381018846,1755948660977,-241.54089553,0.00013972,2]
[381018847,1755948660987,-1019.4,0.00013972,2]
[381018848,1755948661002,-642.3,0.00013972,2]
[381018849,1755948661023,-401.28128321,0.00013972,2]
[381018850,1755948661032,-450.98,0.00013972,2]
[381018851,1755948661042,-400.0,0.00013972,2]
[381018852,1755948661051,-400.0,0.00013972,2]
[381018853,1755948661061,-1073.36,0.00013972,2]
[381018854,1755948661072,-400.0,0.00013972,2]
[381018855,1755948661082,-400.0,0.00013972,2]
[381018856,1755948661091,-400.0,0.00013972,2]
[381018857,1755948661101,-439.07,0.00013972,2]
[381018858,1755948661110,-914.83,0.00013972,2]
[381018859,1755948661120,-400.0,0.00013972,2]
[381018860,1755948661129,-400.0,0.00013972,2]
[381018861,1755948661139,-400.0,0.00013972,2]
[381018862,1755948661149,-995.29,0.00013972,2]
[381018863,1755948661158,-870.48,0.00013972,2]
[381018864,1755948661167,-516.28,0.00013972,2]
[381018865,1755948661176,-2201.17,0.00013972,2]
[381018866,1755948661186,-481.0,0.00013972,2]
[381018867,1755948661195,-408.66,0.00013972,2]
[381018868,1755948661204,-400.0,0.00013972,2]
[381018869,1755948661214,-400.0,0.00013972,2]
[381018870,1755948661223,-617.06,0.00013972,2]
[381018871,1755948661232,-400.0,0.00013972,2]
[381018872,1755948661242,-573.07,0.00013972,2]
[381018873,1755948661251,-820.92,0.00013972,2]
[381018874,1755948661261,-400.0,0.00013972,2]
[381018875,1755948661272,-538.67,0.00013972,2]
[381018876,1755948661281,-423.3,0.00013972,2]
[381018877,1755948661291,-400.0,0.00013972,2]
[381018878,1755948661300,-400.0,0.00013972,2]
[381018879,1755948661310,-1662.2,0.00013972,2]
[381018880,1755948661319,-400.0,0.00013972,2]
[381018881,1755948661328,-689.4,0.00013972,2]
[381018882,1755948661338,-834.96,0.00013972,2]
[381018883,1755948661348,-393.00803612,0.00013972,2]
[381018884,1755948661359,-926.24,0.00013972,2]
[381018885,1755948661369,-400.0,0.00013972,2]
[381018886,1755948661379,-617.09,0.00013972,2]
[381018887,1755948661389,-400.0,0.00013972,2]
[381018888,1755948661398,-579.89,0.00013972,2]
[381018889,1755948661408,-473.31,0.00013972,2]
[381018890,1755948661418,-961.52,0.00013972,2]
[381018891,1755948661427,-754.48,0.00013972,2]
[381018892,1755948661436,-410.58,0.00013972,2]
[381018893,1755948661446,-405.78,0.00013972,2]
[381018894,1755948661455,-400.0,0.00013972,2]
[381018895,1755948661465,-656.76,0.00013972,2]
[381018896,1755948661474,-613.76,0.00013972,2]
[381018897,1755948661483,-942.82,0.00013972,2]
[381018898,1755948661493,-400.0,0.00013972,2]
[381018899,1755948661502,-1002.67,0.00013972,2]
[381018900,1755948661511,-400.0,0.00013972,2]
[381018901,1755948661520,-1039.12,0.00013972,2]
[381018902,1755948661530,-400.0,0.00013972,2]
[381018903,1755948661540,-419.98,0.00013972,2]
[381018904,1755948661549,-400.0,0.00013972,2]
[381018905,1755948661559,-1006.21,0.00013972,2]
[381018906,1755948661568,-544.24,0.00013972,2]
[381018907,1755948661578,-400.0,0.00013972,2]
[381018908,1755948661588,-400.0,0.00013972,2]
[381018909,1755948661598,-595.17,0.00013972,2]
[381018910,1755948661608,-400.0,0.00013972,2]
[381018911,1755948661617,-400.0,0.00013972,2]
[381018912,1755948661626,-400.0,0.00013972,2]
[381018913,1755948661636,-578.03,0.00013972,2]
[381018914,1755948661645,-928.55,0.00013972,2]
[381018915,1755948661654,-400.0,0.00013972,2]
[381018916,1755948661664,-753.33,0.00013972,2]
[381018917,1755948661673,-512.81,0.00013972,2]
[381018918,1755948661683,-874.38,0.00013972,2]
[381018919,1755948661692,-1000.48,0.00013972,2]
[381018920,1755948661701,-893.18,0.00013972,2]
[381018921,1755948661711,-876.08,0.00013972,2]
[381018922,1755948661721,-673.5,0.00013972,2]
[381018923,1755948661731,-400.0,0.00013972,2]
[381018924,1755948661742,-435.26,0.00013972,2]
[381018925,1755948661751,-400.0,0.00013972,2]
[381018926,1755948661760,-492.17,0.00013972,2]
[381018927,1755948661770,-400.0,0.00013972,2]
[381018928,1755948661779,-400.0,0.00013972,2]
[381018929,1755948661789,-536.93,0.00013972,2]
[381018930,1755948661799,-547.27,0.00013972,2]
[381018931,1755948661809,-1497.4,0.00013972,2]